[Event "Titled Tuesday Blitz March 08 Early 2022"]
[White "Babazada, Khazar"]
[Black "Mitusov, Semen"]
[WhiteFideId "13413554"]
[BlackFideId "14151049"]
[WhiteElo "2418"]
[BlackElo "2265"]
[Result "0-1"]
[Round "06"]
[TimeControl "180+1"]
[Date "2022.03.09"]
[WhiteClock "0:00:02"]
[BlackClock "0:00:05"]

1. e4 {[%clk 0:03:00]}  e5 {[%clk 0:02:59]} 2. Nf3 {[%clk 0:03:00]}  Nc6 {[%clk 0:02:59]} 3. Bb5 {[%clk 0:02:59]}  a6 {[%clk 0:02:59]} 4. Bxc6 {[%clk 0:02:59]}  dxc6 {[%clk 0:02:59]} 5. O-O {[%clk 0:02:59]}  f6 {[%clk 0:02:58]} 6. d3 {[%clk 0:02:58]}  c5 {[%clk 0:02:57]} 7. Be3 {[%clk 0:02:56]}  Be6 {[%clk 0:02:56]} 8. Nbd2 {[%clk 0:02:56]}  Qd7 {[%clk 0:02:46]} 9. a3 {[%clk 0:02:53]}  b6 {[%clk 0:02:34]} 10. Qb1 {[%clk 0:02:46]}  a5 {[%clk 0:02:26]} 11. c3 {[%clk 0:02:39]}  Bd6 {[%clk 0:02:07]} 12. d4 {[%clk 0:02:38]}  Ne7 {[%clk 0:02:03]} 13. dxc5 {[%clk 0:02:12]}  Bxc5 {[%clk 0:01:58]} 14. Bxc5 {[%clk 0:01:58]}  bxc5 {[%clk 0:01:59]} 15. Rd1 {[%clk 0:01:54]}  O-O {[%clk 0:01:58]} 16. Qc2 {[%clk 0:01:52]}  Rab8 {[%clk 0:01:52]} 17. b3 {[%clk 0:01:45]}  a4 {[%clk 0:01:31]} 18. bxa4 {[%clk 0:01:37]}  Qc6 {[%clk 0:01:24]} 19. Nh4 {[%clk 0:01:14]}  Rfd8 {[%clk 0:01:16]} 20. a5 {[%clk 0:01:02]}  Qb5 {[%clk 0:01:09]} 21. Nf5 {[%clk 0:01:02]}  Nxf5 {[%clk 0:01:02]} 22. exf5 {[%clk 0:01:02]}  Bf7 {[%clk 0:01:00]} 23. Nf1 {[%clk 0:00:55]}  Qxa5 {[%clk 0:00:52]} 24. Ne3 {[%clk 0:00:51]}  Rxd1+ {[%clk 0:00:44]} 25. Rxd1 {[%clk 0:00:52]}  Qxa3 {[%clk 0:00:42]} 26. h3 {[%clk 0:00:42]}  Bb3 {[%clk 0:00:37]} 27. Qb1 {[%clk 0:00:42]}  Ra8 {[%clk 0:00:37]} 28. Re1 {[%clk 0:00:37]}  h5 {[%clk 0:00:30]} 29. Qe4 {[%clk 0:00:36]}  Bf7 {[%clk 0:00:24]} 30. Kh2 {[%clk 0:00:35]}  Rd8 {[%clk 0:00:20]} 31. c4 {[%clk 0:00:25]}  Qa6 {[%clk 0:00:15]} 32. Rb1 {[%clk 0:00:22]}  Rd4 {[%clk 0:00:13]} 33. Qf3 {[%clk 0:00:17]}  Rd8 {[%clk 0:00:12]} 34. Rb7 {[%clk 0:00:17]}  Qd6 {[%clk 0:00:11]} 35. g3 {[%clk 0:00:12]}  Re8 {[%clk 0:00:11]} 36. h4 {[%clk 0:00:08]}  Rc8 {[%clk 0:00:06]} 37. Ra7 {[%clk 0:00:08]}  Qb6 {[%clk 0:00:05]} 38. Rb7 {[%clk 0:00:08]}  Qa6 {[%clk 0:00:04]} 39. Rb5 {[%clk 0:00:06]}  Qd6 {[%clk 0:00:03]} 40. Qb7 {[%clk 0:00:04]}  Rd8 {[%clk 0:00:03]} 41. Qa7 {[%clk 0:00:03]}  Be8 {[%clk 0:00:04]} 42. Rxc5 {[%clk 0:00:04]}  Bc6 {[%clk 0:00:03]} 43. Qa6 {[%clk 0:00:02]}  Qxc5 {[%clk 0:00:03]} 44. Qa1 {[%clk 0:00:01]}  Qd6 {[%clk 0:00:03]} 45. Qe1 {[%clk 0:00:02]}  Bb7 {[%clk 0:00:03]} 46. f3 {[%clk 0:00:01]}  Qc6 {[%clk 0:00:03]} 47. Nd5 {[%clk 0:00:01]}  Qxc4 {[%clk 0:00:04]} 48. Ne7+ {[%clk 0:00:01]}  Kf7 {[%clk 0:00:04]} 49. Ng6 {[%clk 0:00:02]}  Qc2+ {[%clk 0:00:04]} 50. Kh3 {[%clk 0:00:02]}  Bxf3 {[%clk 0:00:05]} 0-1


[Site "https://www.chess.com"]

[Event "Titled Tuesday Blitz March 08 Early 2022"]
[White "Bethke, Richard"]
[Black "Alavi, Sayed Javad"]
[WhiteFideId "12959243"]
[BlackFideId "12500607"]
[WhiteElo "2534"]
[BlackElo "2475"]
[Result "1-0"]
[Round "06"]
[TimeControl "180+1"]
[Date "2022.03.08"]
[WhiteClock "0:01:00"]
[BlackClock "0:00:27"]

1. e4 {[%clk 0:03:00]}  c6 {[%clk 0:02:59]} 2. Nf3 {[%clk 0:02:59]}  d5 {[%clk 0:02:59]} 3. Nc3 {[%clk 0:03:00]}  dxe4 {[%clk 0:02:59]} 4. Nxe4 {[%clk 0:03:01]}  Nf6 {[%clk 0:02:59]} 5. Ng3 {[%clk 0:02:52]}  h5 {[%clk 0:02:58]} 6. h4 {[%clk 0:02:45]}  Bg4 {[%clk 0:02:55]} 7. Be2 {[%clk 0:02:45]}  e6 {[%clk 0:02:55]} 8. d4 {[%clk 0:02:41]}  Bd6 {[%clk 0:02:46]} 9. Ne5 {[%clk 0:02:41]}  Bxe5 {[%clk 0:02:39]} 10. dxe5 {[%clk 0:02:42]}  Qa5+ {[%clk 0:02:40]} 11. Bd2 {[%clk 0:02:40]}  Qxe5 {[%clk 0:02:38]} 12. Bc3 {[%clk 0:02:40]}  Bxe2 {[%clk 0:02:34]} 13. Bxe5 {[%clk 0:02:38]}  Bxd1 {[%clk 0:02:33]} 14. Bxf6 {[%clk 0:02:38]}  gxf6 {[%clk 0:02:32]} 15. Rxd1 {[%clk 0:02:37]}  f5 {[%clk 0:02:24]} 16. Ke2 {[%clk 0:02:37]}  Nd7 {[%clk 0:02:23]} 17. Rd6 {[%clk 0:02:31]}  Ke7 {[%clk 0:02:18]} 18. Rhd1 {[%clk 0:02:30]}  Nf6 {[%clk 0:02:19]} 19. R6d4 {[%clk 0:02:29]}  Rhg8 {[%clk 0:02:00]} 20. a4 {[%clk 0:02:19]}  Rg4 {[%clk 0:01:55]} 21. a5 {[%clk 0:02:17]}  a6 {[%clk 0:01:33]} 22. R1d3 {[%clk 0:01:58]}  Rh8 {[%clk 0:01:12]} 23. Rxg4 {[%clk 0:01:40]}  hxg4 {[%clk 0:01:12]} 24. Rb3 {[%clk 0:01:40]}  Rb8 {[%clk 0:01:11]} 25. f4 {[%clk 0:01:39]}  Nd5 {[%clk 0:01:08]} 26. Nh5 {[%clk 0:01:39]}  b5 {[%clk 0:01:01]} 27. axb6 {[%clk 0:01:38]}  Rxb6 {[%clk 0:01:01]} 28. Rxb6 {[%clk 0:01:35]}  Nxb6 {[%clk 0:01:01]} 29. Kd3 {[%clk 0:01:24]}  Na4 {[%clk 0:01:01]} 30. b4 {[%clk 0:01:20]}  Nb6 {[%clk 0:00:32]} 31. c4 {[%clk 0:01:17]}  Nd5 {[%clk 0:00:33]} 32. cxd5 {[%clk 0:01:17]}  cxd5 {[%clk 0:00:30]} 33. Kd4 {[%clk 0:01:11]}  f6 {[%clk 0:00:29]} 34. Ng3 {[%clk 0:01:05]}  Kd6 {[%clk 0:00:28]} 35. Nxf5+ {[%clk 0:01:03]}  exf5 {[%clk 0:00:27]} 36. g3 {[%clk 0:01:00]} 1-0


[Site "https://www.chess.com"]

[Event "Titled Tuesday Blitz March 08 Early 2022"]
[White "Bodnaruk, Anastasia"]
[Black "Aitbayev, Aslan"]
[WhiteFideId "4181751"]
[BlackFideId "13704613"]
[WhiteElo "2393"]
[BlackElo "2385"]
[Result "1/2-1/2"]
[Round "06"]
[TimeControl "180+1"]
[Date "2022.03.09"]
[WhiteClock "0:00:15"]
[BlackClock "0:00:12"]

1. f4 {[%clk 0:02:53]}  d5 {[%clk 0:02:58]} 2. Nf3 {[%clk 0:02:51]}  g6 {[%clk 0:02:57]} 3. g3 {[%clk 0:02:51]}  Bg7 {[%clk 0:02:57]} 4. Bg2 {[%clk 0:02:52]}  Nh6 {[%clk 0:02:55]} 5. O-O {[%clk 0:02:49]}  O-O {[%clk 0:02:55]} 6. d3 {[%clk 0:02:48]}  d4 {[%clk 0:02:54]} 7. Nbd2 {[%clk 0:02:40]}  Nf5 {[%clk 0:02:47]} 8. Nc4 {[%clk 0:02:39]}  c5 {[%clk 0:02:39]} 9. g4 {[%clk 0:02:30]}  Nd6 {[%clk 0:02:34]} 10. Nxd6 {[%clk 0:02:17]}  Qxd6 {[%clk 0:02:32]} 11. h3 {[%clk 0:02:17]}  Nc6 {[%clk 0:02:31]} 12. Bd2 {[%clk 0:02:08]}  e5 {[%clk 0:02:24]} 13. fxe5 {[%clk 0:02:05]}  Nxe5 {[%clk 0:02:24]} 14. Nxe5 {[%clk 0:02:05]}  Bxe5 {[%clk 0:02:21]} 15. Qc1 {[%clk 0:01:54]}  f5 {[%clk 0:02:09]} 16. Bh6 {[%clk 0:01:48]}  Rf7 {[%clk 0:02:05]} 17. Qg5 {[%clk 0:01:42]}  f4 {[%clk 0:01:32]} 18. h4 {[%clk 0:01:23]}  Be6 {[%clk 0:00:33]} 19. Be4 {[%clk 0:01:19]}  Bf6 {[%clk 0:00:24]} 20. Qxf4 {[%clk 0:01:18]}  Qxf4 {[%clk 0:00:23]} 21. Rxf4 {[%clk 0:01:18]}  Bxh4 {[%clk 0:00:21]} 22. Rxf7 {[%clk 0:01:13]}  Bxf7 {[%clk 0:00:21]} 23. Kg2 {[%clk 0:01:08]}  g5 {[%clk 0:00:18]} 24. Rf1 {[%clk 0:01:04]}  Re8 {[%clk 0:00:18]} 25. Rf6 {[%clk 0:00:53]}  Re6 {[%clk 0:00:18]} 26. Rxe6 {[%clk 0:00:50]}  Bxe6 {[%clk 0:00:19]} 27. Kf3 {[%clk 0:00:45]}  Bxa2 {[%clk 0:00:18]} 28. Bxb7 {[%clk 0:00:41]}  Be6 {[%clk 0:00:16]} 29. Be4 {[%clk 0:00:38]}  a5 {[%clk 0:00:16]} 30. b3 {[%clk 0:00:38]}  Bf7 {[%clk 0:00:15]} 31. Bc6 {[%clk 0:00:27]}  Be6 {[%clk 0:00:15]} 32. Be4 {[%clk 0:00:22]}  Bf7 {[%clk 0:00:15]} 33. e3 {[%clk 0:00:21]}  Be6 {[%clk 0:00:13]} 34. exd4 {[%clk 0:00:20]}  cxd4 {[%clk 0:00:14]} 35. Bf5 {[%clk 0:00:18]}  Bd5+ {[%clk 0:00:13]} 36. Be4 {[%clk 0:00:18]}  Be6 {[%clk 0:00:13]} 37. Bc6 {[%clk 0:00:18]}  Kf7 {[%clk 0:00:12]} 38. Be4 {[%clk 0:00:15]}  Kg8 {[%clk 0:00:12]} 1/2-1/2


[Site "https://www.chess.com"]

[Event "Titled Tuesday Blitz March 08 Early 2022"]
[White "Bures, Vit"]
[Black "Antonio, Jorge Carlos"]
[WhiteFideId "309052"]
[BlackFideId "113190"]
[WhiteElo "2118"]
[BlackElo "2247"]
[Result "1/2-1/2"]
[Round "06"]
[TimeControl "180+1"]
[Date "2022.03.09"]
[WhiteClock "0:00:07"]
[BlackClock "0:00:15"]

1. d4 {[%clk 0:02:56]}  d5 {[%clk 0:02:52]} 2. c4 {[%clk 0:02:55]}  c6 {[%clk 0:02:41]} 3. Nc3 {[%clk 0:02:55]}  dxc4 {[%clk 0:02:36]} 4. e3 {[%clk 0:02:54]}  b5 {[%clk 0:02:34]} 5. a4 {[%clk 0:02:53]}  Qb6 {[%clk 0:02:30]} 6. axb5 {[%clk 0:02:51]}  cxb5 {[%clk 0:02:28]} 7. b3 {[%clk 0:02:49]}  e6 {[%clk 0:02:16]} 8. bxc4 {[%clk 0:02:45]}  Bb4 {[%clk 0:02:12]} 9. Bd2 {[%clk 0:02:43]}  bxc4 {[%clk 0:02:09]} 10. Nf3 {[%clk 0:02:29]}  Nf6 {[%clk 0:02:04]} 11. Bxc4 {[%clk 0:02:25]}  a5 {[%clk 0:01:59]} 12. O-O {[%clk 0:02:18]}  O-O {[%clk 0:01:54]} 13. Ne5 {[%clk 0:02:16]}  Nbd7 {[%clk 0:01:48]} 14. f4 {[%clk 0:01:41]}  Ba6 {[%clk 0:01:31]} 15. Qb3 {[%clk 0:01:34]}  Rfc8 {[%clk 0:01:23]} 16. Na4 {[%clk 0:01:19]}  Bxc4 {[%clk 0:01:18]} 17. Nxc4 {[%clk 0:00:59]}  Qc6 {[%clk 0:01:14]} 18. Bxb4 {[%clk 0:00:54]}  axb4 {[%clk 0:01:09]} 19. Rfc1 {[%clk 0:00:50]}  Nd5 {[%clk 0:01:03]} 20. Ne5 {[%clk 0:00:32]}  Qxc1+ {[%clk 0:00:54]} 21. Rxc1 {[%clk 0:00:33]}  Rxc1+ {[%clk 0:00:53]} 22. Kf2 {[%clk 0:00:34]}  N7f6 {[%clk 0:00:34]} 23. Nc5 {[%clk 0:00:33]}  Ra3 {[%clk 0:00:22]} 24. Qb2 {[%clk 0:00:29]}  Rac3 {[%clk 0:00:11]} 25. Kg3 {[%clk 0:00:07]}  h6 {[%clk 0:00:12]} 26. Ncd3 {[%clk 0:00:06]}  R1c2 {[%clk 0:00:12]} 27. Qa1 {[%clk 0:00:05]}  Rd2 {[%clk 0:00:13]} 28. Qa8+ {[%clk 0:00:05]}  Kh7 {[%clk 0:00:11]} 29. Qf8 {[%clk 0:00:06]}  Rcc2 {[%clk 0:00:12]} 30. Qxf7 {[%clk 0:00:05]}  Rxg2+ {[%clk 0:00:12]} 31. Kh3 {[%clk 0:00:05]}  Rxh2+ {[%clk 0:00:13]} 32. Kg3 {[%clk 0:00:05]}  Rcg2+ {[%clk 0:00:13]} 33. Kf3 {[%clk 0:00:06]}  Rf2+ {[%clk 0:00:13]} 34. Kg3 {[%clk 0:00:06]}  Rfg2+ {[%clk 0:00:13]} 35. Kf3 {[%clk 0:00:06]}  Rf2+ {[%clk 0:00:14]} 36. Kg3 {[%clk 0:00:07]}  Rfg2+ {[%clk 0:00:15]} 1/2-1/2


[Site "https://www.chess.com"]

[Event "Titled Tuesday Blitz March 08 Early 2022"]
[White "Cori T., Deysi"]
[Black "Tsatsalashvili, Keti"]
[WhiteFideId "3801934"]
[BlackFideId "13603434"]
[WhiteElo "2341"]
[BlackElo "2246"]
[Result "1-0"]
[Round "06"]
[TimeControl "180+1"]
[Date "2022.03.09"]
[WhiteClock "0:00:49"]
[BlackClock "0:00:02"]

1. Nf3 {[%clk 0:03:00]}  Nf6 {[%clk 0:02:59]} 2. d4 {[%clk 0:03:01]}  e6 {[%clk 0:02:59]} 3. e3 {[%clk 0:03:01]}  d5 {[%clk 0:02:58]} 4. Bd3 {[%clk 0:03:01]}  c5 {[%clk 0:02:55]} 5. b3 {[%clk 0:03:01]}  Nc6 {[%clk 0:02:55]} 6. Bb2 {[%clk 0:03:01]}  cxd4 {[%clk 0:02:55]} 7. exd4 {[%clk 0:03:02]}  Bb4+ {[%clk 0:02:55]} 8. Nbd2 {[%clk 0:03:00]}  O-O {[%clk 0:02:45]} 9. O-O {[%clk 0:03:00]}  b6 {[%clk 0:02:41]} 10. a3 {[%clk 0:03:00]}  Bd6 {[%clk 0:02:41]} 11. Ne5 {[%clk 0:03:01]}  Bb7 {[%clk 0:02:41]} 12. f4 {[%clk 0:03:01]}  Rc8 {[%clk 0:02:40]} 13. Kh1 {[%clk 0:03:00]}  Ne7 {[%clk 0:02:38]} 14. f5 {[%clk 0:02:54]}  Nxf5 {[%clk 0:02:33]} 15. Bxf5 {[%clk 0:02:55]}  exf5 {[%clk 0:02:34]} 16. Rxf5 {[%clk 0:02:55]}  Ne4 {[%clk 0:02:14]} 17. Nxe4 {[%clk 0:02:53]}  dxe4 {[%clk 0:02:15]} 18. Nc4 {[%clk 0:02:49]}  Rxc4 {[%clk 0:01:51]} 19. bxc4 {[%clk 0:02:48]}  Qh4 {[%clk 0:01:51]} 20. Qh5 {[%clk 0:02:45]}  Qxh5 {[%clk 0:01:28]} 21. Rxh5 {[%clk 0:02:45]}  f5 {[%clk 0:01:27]} 22. c5 {[%clk 0:02:06]}  bxc5 {[%clk 0:01:06]} 23. dxc5 {[%clk 0:02:06]}  Bxc5 {[%clk 0:01:07]} 24. Rd1 {[%clk 0:02:06]}  Bc6 {[%clk 0:00:48]} 25. Bd4 {[%clk 0:01:53]}  Rd8 {[%clk 0:00:39]} 26. c3 {[%clk 0:01:52]}  g6 {[%clk 0:00:30]} 27. Rh3 {[%clk 0:01:52]}  Ba4 {[%clk 0:00:19]} 28. Rb1 {[%clk 0:01:19]}  Bxd4 {[%clk 0:00:19]} 29. cxd4 {[%clk 0:01:19]}  Rxd4 {[%clk 0:00:20]} 30. Rc3 {[%clk 0:01:17]}  Rd7 {[%clk 0:00:14]} 31. g3 {[%clk 0:01:16]}  Bd1 {[%clk 0:00:11]} 32. Kg1 {[%clk 0:01:15]}  Bf3 {[%clk 0:00:12]} 33. h4 {[%clk 0:01:13]}  h6 {[%clk 0:00:11]} 34. Kf2 {[%clk 0:01:13]}  Kg7 {[%clk 0:00:11]} 35. Rc6 {[%clk 0:01:09]}  Rd2+ {[%clk 0:00:11]} 36. Ke3 {[%clk 0:01:09]}  Rd3+ {[%clk 0:00:11]} 37. Kf4 {[%clk 0:01:08]}  Rd7 {[%clk 0:00:09]} 38. Rb8 {[%clk 0:00:59]}  Re7 {[%clk 0:00:05]} 39. Rcc8 {[%clk 0:00:51]}  e3 {[%clk 0:00:03]} 40. Rg8+ {[%clk 0:00:50]}  Kf7 {[%clk 0:00:01]} 41. Rbf8+ {[%clk 0:00:49]}  Ke6 {[%clk 0:00:02]} 42. Kxf3 {[%clk 0:00:50]}  Kd5 {[%clk 0:00:02]} 43. Ke2 {[%clk 0:00:50]}  Kc4 {[%clk 0:00:02]} 44. Rxg6 {[%clk 0:00:49]} 1-0


[Site "https://www.chess.com"]

[Event "Titled Tuesday Blitz March 08 Early 2022"]
[White "Costachi, Mihnea"]
[Black "Aldokhin, Ivan"]
[WhiteFideId "1217518"]
[BlackFideId "24115720"]
[WhiteElo "2464"]
[BlackElo "2231"]
[Result "0-1"]
[Round "06"]
[TimeControl "180+1"]
[Date "2022.03.09"]
[WhiteClock "0:00:59"]
[BlackClock "0:00:31"]

1. e4 {[%clk 0:03:00]}  c5 {[%clk 0:03:00]} 2. Nc3 {[%clk 0:03:00]}  e6 {[%clk 0:03:00]} 3. g3 {[%clk 0:03:01]}  Nc6 {[%clk 0:02:59]} 4. Bg2 {[%clk 0:03:01]}  Nf6 {[%clk 0:02:59]} 5. d3 {[%clk 0:03:01]}  d6 {[%clk 0:02:59]} 6. f4 {[%clk 0:03:02]}  Be7 {[%clk 0:02:57]} 7. Nf3 {[%clk 0:03:02]}  O-O {[%clk 0:02:57]} 8. O-O {[%clk 0:03:03]}  Rb8 {[%clk 0:02:55]} 9. a4 {[%clk 0:03:02]}  a6 {[%clk 0:02:55]} 10. h3 {[%clk 0:03:03]}  b5 {[%clk 0:02:51]} 11. axb5 {[%clk 0:03:04]}  axb5 {[%clk 0:02:51]} 12. Be3 {[%clk 0:03:05]}  b4 {[%clk 0:02:51]} 13. Ne2 {[%clk 0:03:05]}  c4 {[%clk 0:02:51]} 14. Qd2 {[%clk 0:02:58]}  b3 {[%clk 0:02:45]} 15. dxc4 {[%clk 0:02:39]}  Nxe4 {[%clk 0:02:37]} 16. Qd3 {[%clk 0:02:38]}  Nc5 {[%clk 0:02:27]} 17. Qd2 {[%clk 0:02:28]}  bxc2 {[%clk 0:02:22]} 18. Qxc2 {[%clk 0:02:29]}  Nb4 {[%clk 0:02:18]} 19. Qb1 {[%clk 0:02:24]}  Bb7 {[%clk 0:02:16]} 20. Rd1 {[%clk 0:02:17]}  Be4 {[%clk 0:02:11]} 21. Qc1 {[%clk 0:02:11]}  Nb3 {[%clk 0:01:41]} 22. Qc3 {[%clk 0:01:55]}  Nxa1 {[%clk 0:01:39]} 23. Rxa1 {[%clk 0:01:53]}  Nc2 {[%clk 0:01:39]} 24. Rd1 {[%clk 0:01:43]}  Nxe3 {[%clk 0:01:34]} 25. Qxe3 {[%clk 0:01:43]}  Bxf3 {[%clk 0:01:34]} 26. Bxf3 {[%clk 0:01:41]}  Rxb2 {[%clk 0:01:34]} 27. c5 {[%clk 0:01:28]}  d5 {[%clk 0:01:24]} 28. f5 {[%clk 0:01:28]}  Qc7 {[%clk 0:01:16]} 29. Rc1 {[%clk 0:01:28]}  Rc8 {[%clk 0:01:01]} 30. fxe6 {[%clk 0:01:07]}  Bxc5 {[%clk 0:00:54]} 31. exf7+ {[%clk 0:01:08]}  Kf8 {[%clk 0:00:41]} 32. Nd4 {[%clk 0:01:01]}  Bxd4 {[%clk 0:00:31]} 33. Rxc7 {[%clk 0:00:59]}  Bxe3+ {[%clk 0:00:31]} 34. Kf1 {[%clk 0:00:59]}  Rxc7 {[%clk 0:00:31]} 0-1


[Site "https://www.chess.com"]

[Event "Titled Tuesday Blitz March 08 Early 2022"]
[White "Csonka, Balazs"]
[Black "Kamsky, Gata"]
[WhiteFideId "742910"]
[BlackFideId "2000024"]
[WhiteElo "2404"]
[BlackElo "2645"]
[Result "0-1"]
[Round "06"]
[TimeControl "180+1"]
[Date "2022.03.08"]
[WhiteClock "0:00:01"]
[BlackClock "0:00:22"]

1. e4 {[%clk 0:03:00]}  c6 {[%clk 0:02:51]} 2. Nc3 {[%clk 0:02:51]}  d5 {[%clk 0:02:51]} 3. Nf3 {[%clk 0:02:52]}  Bg4 {[%clk 0:02:49]} 4. h3 {[%clk 0:02:52]}  Bxf3 {[%clk 0:02:48]} 5. Qxf3 {[%clk 0:02:53]}  e6 {[%clk 0:02:43]} 6. Be2 {[%clk 0:02:53]}  Bc5 {[%clk 0:02:36]} 7. O-O {[%clk 0:02:52]}  Ne7 {[%clk 0:02:34]} 8. Na4 {[%clk 0:02:51]}  Bd4 {[%clk 0:02:27]} 9. c3 {[%clk 0:02:44]}  dxe4 {[%clk 0:02:27]} 10. Qxe4 {[%clk 0:02:44]}  Bf6 {[%clk 0:02:26]} 11. d4 {[%clk 0:02:33]}  b6 {[%clk 0:02:24]} 12. Rd1 {[%clk 0:02:28]}  Qd5 {[%clk 0:02:17]} 13. Bf3 {[%clk 0:02:13]}  Qxe4 {[%clk 0:02:15]} 14. Bxe4 {[%clk 0:02:14]}  Nd7 {[%clk 0:02:08]} 15. c4 {[%clk 0:01:46]}  Rc8 {[%clk 0:02:07]} 16. Be3 {[%clk 0:01:39]}  O-O {[%clk 0:02:05]} 17. Nc3 {[%clk 0:01:22]}  Rfd8 {[%clk 0:02:04]} 18. a4 {[%clk 0:01:19]}  a5 {[%clk 0:01:58]} 19. Rd2 {[%clk 0:01:04]}  g6 {[%clk 0:01:56]} 20. Rad1 {[%clk 0:01:03]}  Nf5 {[%clk 0:01:50]} 21. Bxf5 {[%clk 0:00:58]}  gxf5 {[%clk 0:01:36]} 22. Bf4 {[%clk 0:00:32]}  Nf8 {[%clk 0:01:19]} 23. g3 {[%clk 0:00:22]}  Kg7 {[%clk 0:01:15]} 24. d5 {[%clk 0:00:12]}  cxd5 {[%clk 0:00:59]} 25. cxd5 {[%clk 0:00:12]}  Rc4 {[%clk 0:00:51]} 26. Be3 {[%clk 0:00:06]}  Rb4 {[%clk 0:00:51]} 27. Nb5 {[%clk 0:00:02]}  Rxa4 {[%clk 0:00:37]} 28. dxe6 {[%clk 0:00:02]}  Rxd2 {[%clk 0:00:36]} 29. Rxd2 {[%clk 0:00:03]}  Nxe6 {[%clk 0:00:35]} 30. Nd6 {[%clk 0:00:03]}  f4 {[%clk 0:00:34]} 31. gxf4 {[%clk 0:00:03]}  Nxf4 {[%clk 0:00:32]} 32. Ne8+ {[%clk 0:00:02]}  Kg6 {[%clk 0:00:31]} 33. Nxf6 {[%clk 0:00:03]}  Kxf6 {[%clk 0:00:31]} 34. Rd6+ {[%clk 0:00:03]}  Ke5 {[%clk 0:00:29]} 35. Bxf4+ {[%clk 0:00:04]}  Rxf4 {[%clk 0:00:28]} 36. Rxb6 {[%clk 0:00:05]}  Rb4 {[%clk 0:00:27]} 37. Ra6 {[%clk 0:00:04]}  a4 {[%clk 0:00:27]} 38. Kg2 {[%clk 0:00:04]}  Kd4 {[%clk 0:00:26]} 39. Kg3 {[%clk 0:00:03]}  Kc4 {[%clk 0:00:26]} 40. f3 {[%clk 0:00:03]}  Kb3 {[%clk 0:00:26]} 41. Rf6 {[%clk 0:00:02]}  Kxb2 {[%clk 0:00:26]} 42. Rxf7 {[%clk 0:00:03]}  h5 {[%clk 0:00:26]} 43. Ra7 {[%clk 0:00:02]}  a3 {[%clk 0:00:26]} 44. f4 {[%clk 0:00:02]}  a2 {[%clk 0:00:23]} 45. Kh4 {[%clk 0:00:02]}  Rb5 {[%clk 0:00:22]} 46. f5 {[%clk 0:00:01]}  Rxf5 {[%clk 0:00:21]} 47. Kg3 {[%clk 0:00:02]}  Rb5 {[%clk 0:00:21]} 48. h4 {[%clk 0:00:02]}  a1=Q {[%clk 0:00:21]} 49. Rxa1 {[%clk 0:00:01]}  Kxa1 {[%clk 0:00:22]} 0-1


[Site "https://www.chess.com"]

[Event "Titled Tuesday Blitz March 08 Early 2022"]
[White "De Souza, Cristiano Gomes"]
[Black "Jakubowska, Anna"]
[WhiteFideId "2151758"]
[BlackFideId "1121952"]
[WhiteElo "2068"]
[BlackElo "1924"]
[Result "0-1"]
[Round "06"]
[TimeControl "180+1"]
[Date "2022.03.09"]
[WhiteClock "0:01:29"]
[BlackClock "0:01:24"]

1. d4 {[%clk 0:02:59]}  f5 {[%clk 0:02:58]} 2. c4 {[%clk 0:02:59]}  Nf6 {[%clk 0:02:58]} 3. Nf3 {[%clk 0:03:00]}  g6 {[%clk 0:02:58]} 4. Nc3 {[%clk 0:03:01]}  Bg7 {[%clk 0:02:58]} 5. g3 {[%clk 0:03:01]}  O-O {[%clk 0:02:58]} 6. Bg2 {[%clk 0:03:02]}  d6 {[%clk 0:02:59]} 7. O-O {[%clk 0:03:02]}  Nc6 {[%clk 0:02:59]} 8. b3 {[%clk 0:03:03]}  e5 {[%clk 0:02:58]} 9. d5 {[%clk 0:03:03]}  Ne7 {[%clk 0:02:56]} 10. Bb2 {[%clk 0:03:02]}  f4 {[%clk 0:02:51]} 11. Rc1 {[%clk 0:03:00]}  Nh5 {[%clk 0:02:33]} 12. Ng5 {[%clk 0:02:57]}  h6 {[%clk 0:02:29]} 13. Ne6 {[%clk 0:02:56]}  Bxe6 {[%clk 0:02:29]} 14. dxe6 {[%clk 0:02:56]}  Qc8 {[%clk 0:02:29]} 15. Nd5 {[%clk 0:02:55]}  Re8 {[%clk 0:02:25]} 16. Be4 {[%clk 0:02:46]}  g5 {[%clk 0:02:09]} 17. e3 {[%clk 0:02:42]}  Nf6 {[%clk 0:02:06]} 18. Nxf6+ {[%clk 0:02:40]}  Bxf6 {[%clk 0:02:06]} 19. c5 {[%clk 0:02:39]}  Qxe6 {[%clk 0:02:00]} 20. cxd6 {[%clk 0:02:35]}  cxd6 {[%clk 0:01:59]} 21. Bxb7 {[%clk 0:02:35]}  Rad8 {[%clk 0:01:57]} 22. e4 {[%clk 0:02:31]}  Kg7 {[%clk 0:01:52]} 23. Rc7 {[%clk 0:02:30]}  Rd7 {[%clk 0:01:49]} 24. Qc2 {[%clk 0:02:27]}  Red8 {[%clk 0:01:48]} 25. f3 {[%clk 0:02:24]}  fxg3 {[%clk 0:01:44]} 26. hxg3 {[%clk 0:02:24]}  Qh3 {[%clk 0:01:43]} 27. g4 {[%clk 0:02:11]}  h5 {[%clk 0:01:32]} 28. gxh5 {[%clk 0:02:01]}  Qg3+ {[%clk 0:01:30]} 29. Kh1 {[%clk 0:01:59]}  Rh8 {[%clk 0:01:29]} 30. Rf2 {[%clk 0:01:30]}  Rxh5+ {[%clk 0:01:26]} 31. Rh2 {[%clk 0:01:30]}  Rxh2+ {[%clk 0:01:23]} 32. Qxh2 {[%clk 0:01:29]}  Qxh2+ {[%clk 0:01:24]} 33. Kxh2 {[%clk 0:01:29]}  Rxc7 {[%clk 0:01:24]} 0-1


[Site "https://www.chess.com"]

[Event "Titled Tuesday Blitz March 08 Early 2022"]
[White "Derige Kane, Yan"]
[Black "Mayaud, Raphael"]
[WhiteFideId "20665431"]
[BlackFideId "627151"]
[WhiteElo "2169"]
[BlackElo "2191"]
[Result "1-0"]
[Round "06"]
[TimeControl "180+1"]
[Date "2022.03.09"]
[WhiteClock "0:02:07"]
[BlackClock "0:00:20"]

1. Nf3 {[%clk 0:03:00]}  d5 {[%clk 0:02:59]} 2. g3 {[%clk 0:03:01]}  c6 {[%clk 0:02:59]} 3. Bg2 {[%clk 0:03:02]}  Nf6 {[%clk 0:02:58]} 4. O-O {[%clk 0:03:03]}  Bf5 {[%clk 0:02:59]} 5. c4 {[%clk 0:03:04]}  e6 {[%clk 0:02:58]} 6. cxd5 {[%clk 0:03:05]}  exd5 {[%clk 0:02:56]} 7. b3 {[%clk 0:03:03]}  Nbd7 {[%clk 0:02:56]} 8. Bb2 {[%clk 0:03:04]}  Be7 {[%clk 0:02:56]} 9. Nc3 {[%clk 0:03:04]}  O-O {[%clk 0:02:56]} 10. d3 {[%clk 0:03:05]}  h6 {[%clk 0:02:56]} 11. Re1 {[%clk 0:03:06]}  Bh7 {[%clk 0:02:54]} 12. e4 {[%clk 0:03:06]}  Nb6 {[%clk 0:02:46]} 13. e5 {[%clk 0:03:06]}  Nfd7 {[%clk 0:02:45]} 14. d4 {[%clk 0:03:07]}  Re8 {[%clk 0:02:44]} 15. a4 {[%clk 0:03:06]}  a6 {[%clk 0:02:40]} 16. Bh3 {[%clk 0:03:02]}  Nf8 {[%clk 0:02:40]} 17. Ba3 {[%clk 0:02:57]}  Ne6 {[%clk 0:02:38]} 18. a5 {[%clk 0:02:50]}  Nd7 {[%clk 0:02:37]} 19. Bxe6 {[%clk 0:02:43]}  fxe6 {[%clk 0:02:36]} 20. Bxe7 {[%clk 0:02:44]}  Qxe7 {[%clk 0:02:36]} 21. Na4 {[%clk 0:02:42]}  Rf8 {[%clk 0:02:35]} 22. Nd2 {[%clk 0:02:33]}  Qf7 {[%clk 0:02:30]} 23. f4 {[%clk 0:02:33]}  g5 {[%clk 0:01:53]} 24. Rf1 {[%clk 0:02:30]}  gxf4 {[%clk 0:01:53]} 25. Rxf4 {[%clk 0:02:31]}  Qe7 {[%clk 0:01:43]} 26. Qg4+ {[%clk 0:02:29]}  Kh8 {[%clk 0:01:42]} 27. Raf1 {[%clk 0:02:28]}  Rxf4 {[%clk 0:01:42]} 28. Qxf4 {[%clk 0:02:29]}  Qg7 {[%clk 0:01:24]} 29. Qf7 {[%clk 0:02:21]}  Rf8 {[%clk 0:01:14]} 30. Qxe6 {[%clk 0:02:18]}  Rxf1+ {[%clk 0:01:04]} 31. Kxf1 {[%clk 0:02:18]}  Nf8 {[%clk 0:01:02]} 32. Qe8 {[%clk 0:02:14]}  Bd3+ {[%clk 0:00:53]} 33. Kg2 {[%clk 0:02:14]}  Kg8 {[%clk 0:00:46]} 34. Nc5 {[%clk 0:02:13]}  Qg4 {[%clk 0:00:39]} 35. Nxd3 {[%clk 0:02:07]}  Qe2+ {[%clk 0:00:39]} 36. Nf2 {[%clk 0:02:07]}  Qxd2 {[%clk 0:00:38]} 37. e6 {[%clk 0:02:08]}  Kg7 {[%clk 0:00:20]} 38. Qf7+ {[%clk 0:02:07]} 1-0


[Site "https://www.chess.com"]